fUST/lending_fUST_20241022
["ID","MTS","AMOUNT","RATE_DAILY","PERIOD"]
[340654685,1729607439581,-401.391295,0.00016091,2]
[340654686,1729607439591,-401.391295,0.00016091,2]
[340654687,1729607439601,-473.763715,0.00016091,2]
[340654688,1729607439610,-473.763715,0.00016091,2]
[340654689,1729607439620,-281.001937,0.00016091,2]
[340654690,1729607439631,-281.001937,0.00016091,2]
[340654691,1729607439641,-1049.883201,0.00016091,2]
[340654692,1729607439651,-1049.883201,0.00016091,2]
[340654693,1729607439661,-1049.883201,0.00016091,2]
[340654694,1729607439671,-1049.883201,0.00016091,2]
[340654695,1729607439680,-1362.058989,0.00016091,2]
[340654696,1729607439690,-1362.058989,0.00016091,2]
[340654697,1729607439700,-1362.058989,0.00016091,2]
[340654698,1729607439710,-1362.058989,0.00016091,2]
[340654699,1729607439720,-197.663788,0.00016091,2]
[340654700,1729607439730,-197.663788,0.00016091,2]
[340654701,1729607439740,-197.663788,0.00016091,2]
[340654702,1729607439750,-197.663788,0.00016091,2]
[340654703,1729607439760,-2273.458774,0.00016091,2]
[340654704,1729607439771,-2273.458774,0.00016091,2]
[340654705,1729607439780,-151.0,0.00016091,2]
[340654706,1729607439790,-151.0,0.00016091,2]
[340654707,1729607439800,-176.858881,0.00016091,2]
[340654708,1729607439810,-176.858881,0.00016091,2]
[340654709,1729607439819,-2273.458774,0.00016091,2]
[340654710,1729607439829,-2273.458774,0.00016091,2]
[340654711,1729607439839,-176.858881,0.00016091,2]
[340654712,1729607439849,-176.858881,0.00016091,2]
[340654713,1729607439861,-3082.741677,0.00016091,2]
[340654714,1729607439870,-3082.741677,0.00016091,2]
[340654715,1729607439880,-3082.741677,0.00016091,2]
[340654716,1729607439889,-3082.741677,0.00016091,2]
[340654717,1729607439899,-2268.274185,0.00016091,2]
[340654718,1729607439908,-2268.274185,0.00016091,2]
[340654719,1729607439917,-2268.274185,0.00016091,2]
[340654720,1729607439927,-2268.274185,0.00016091,2]
[340654721,1729607439936,-1152.87729,0.00016091,2]
[340654722,1729607439946,-1152.87729,0.00016091,2]
[340654723,1729607439958,-1152.87729,0.00016091,2]
[340654724,1729607439967,-1152.87729,0.00016091,2]
[340654725,1729607439976,-386.850292,0.00016091,2]
[340654726,1729607439986,-386.850292,0.00016091,2]
[340654727,1729607439995,-386.850292,0.00016091,2]
[340654728,1729607440005,-386.850292,0.00016091,2]
[340654729,1729607440016,-200.909721,0.00016091,2]
[340654730,1729607440026,-546.93219,0.00016091,2]
[340654731,1729607440035,-546.93219,0.00016091,2]
[340654732,1729607440045,-546.93219,0.00016091,2]
[340654733,1729607440055,-546.93219,0.00016091,2]
[340654734,1729607440065,-151.0,0.00016091,2]
[340654735,1729607440075,-151.0,0.00016091,2]
[340654736,1729607440085,-151.0,0.00016091,2]
[340654737,1729607440094,-175.996329,0.00016091,2]
[340654738,1729607440104,-788.078115,0.00016091,2]
[340654739,1729607440113,-788.078115,0.00016091,2]
[340654740,1729607440123,-788.078115,0.00016091,2]
[340654741,1729607440133,-788.078115,0.00016091,2]
[340654742,1729607440142,-151.0,0.00016091,2]
[340654744,1729607440151,-151.0,0.00016091,2]
[340654745,1729607440161,-151.0,0.00016091,2]
[340654746,1729607440171,-226.638382,0.00016091,2]
[340654747,1729607440181,-153.0,0.000161,2]
[340654749,1729607440190,-153.0,0.000161,2]
[340654751,1729607440200,-150.112233,0.000161,2]
[340654753,1729607440209,-150.112233,0.000161,2]
[340654755,1729607440219,-150.112233,0.000161,2]
[340654757,1729607440229,-150.112233,0.000161,2]
[340654759,1729607440239,-150.112233,0.000161,2]
[340654761,1729607440249,-149031.17981711,0.00016101,2]
[340654763,1729607440258,-151.0,0.00016101,2]
[340654764,1729607440271,-151.0,0.00016101,2]
[340654766,1729607440281,-151.0,0.00016101,2]
[340654768,1729607440293,-846.715087,0.00016101,2]
[340654770,1729607440303,-846.715087,0.00016101,2]
[340654772,1729607440313,-614.368358,0.00016101,2]
[340654774,1729607440323,-614.368358,0.00016101,2]
[340654775,1729607440335,-151.0,0.00016101,2]
[340654776,1729607440345,-280.619833,0.00016101,2]
[340654777,1729607440354,-280.619833,0.00016101,2]
[340654778,1729607440366,-151.0,0.00016101,2]
[340654779,1729607440376,-162.029252,0.00016101,2]
[340654780,1729607440386,-162.029252,0.00016101,2]
[340654781,1729607440396,-2611.14782,0.00016101,2]
[340654782,1729607440405,-2611.14782,0.00016101,2]
[340654783,1729607440415,-2165.894833,0.00016101,2]
[340654784,1729607440425,-2165.894833,0.00016101,2]
[340654786,1729607440435,-151.0,0.00016101,2]
[340654788,1729607440445,-151.0,0.00016101,2]
[340654789,1729607440455,-151.0,0.00016101,2]
[340654791,1729607440464,-207.299631,0.00016101,2]
[340654793,1729607440473,-207.299631,0.00016101,2]
[340654795,1729607440482,-268.850082,0.00016101,2]
[340654797,1729607440492,-268.850082,0.00016101,2]
[340654799,1729607440501,-151.0,0.00016101,2]
[340654801,1729607440510,-151.0,0.00016101,2]
[340654803,1729607440527,-151.0,0.00016101,2]
[340654805,1729607440536,-280.281986,0.00016101,2]
[340654807,1729607440548,-280.281986,0.00016101,2]
[340654809,1729607440558,-151.0,0.00016101,2]
[340654811,1729607440568,-151.0,0.00016101,2]
[340654813,1729607440578,-151.0,0.00016101,2]
[340654815,1729607440588,-151.0,0.00016101,2]
[340654817,1729607440598,-2198.283094,0.00016101,2]
[340654819,1729607440607,-2198.283094,0.00016101,2]
[340654821,1729607440617,-167.386446,0.00016101,2]
[340654823,1729607440626,-151.0,0.00016101,2]
[340654825,1729607440637,-167.386446,0.00016101,2]
[340654827,1729607440647,-427.286511,0.00016101,2]
[340654849,1729607440859,-427.286511,0.00016101,2]
[340654851,1729607440871,-3166.575272,0.00016101,2]
[340654853,1729607440882,-3166.575272,0.00016101,2]
[340654855,1729607440891,-151.0,0.00016101,2]
[340654857,1729607440902,-4206.576924,0.00016101,2]
[340654859,1729607440911,-151.0,0.00016101,2]
[340654861,1729607440921,-6074.025346,0.00016101,2]
[340654863,1729607440931,-6074.025346,0.00016101,2]
[340654865,1729607440941,-151.0,0.00016101,2]
[340654867,1729607440951,-990.764241,0.00016101,2]
[340654870,1729607440961,-990.764241,0.00016101,2]
[340654872,1729607440971,-1393.319928,0.00016101,2]
[340654874,1729607440981,-1393.319928,0.00016101,2]
[340654876,1729607440990,-223.127259,0.00016101,2]
[340654878,1729607441000,-223.127259,0.00016101,2]
[340654880,1729607441010,-501.263461,0.00016101,2]
[340654882,1729607441023,-305.592043,0.00016101,2]
[340654884,1729607441032,-305.592043,0.00016101,2]
[340654886,1729607441042,-228.641214,0.00016101,2]
[340654888,1729607441052,-228.641214,0.00016101,2]
[340654890,1729607441062,-228.641214,0.00016101,2]
[340654892,1729607441072,-228.641214,0.00016101,2]
[340654894,1729607441081,-2559.130548,0.00016101,2]
[340654895,1729607441091,-840.25047,0.00016101,2]
[340654897,1729607441100,-840.25047,0.00016101,2]
[340654899,1729607441110,-2559.130548,0.00016101,2]
[340654901,1729607441119,-840.25047,0.00016101,2]
[340654903,1729607441129,-840.25047,0.00016101,2]
[340654905,1729607441139,-1155.485186,0.00016101,2]
[340654907,1729607441149,-1155.485186,0.00016101,2]
[340654909,1729607441158,-151.0,0.00016101,2]
[340654910,1729607441168,-151.0,0.00016101,2]
[340654912,1729607441178,-166.408316,0.00016101,2]
[340654914,1729607441188,-151.0,0.00016101,2]
[340654916,1729607441198,-151.0,0.00016101,2]
[340654918,1729607441208,-3724.42257,0.00016101,2]
[340654920,1729607441218,-401.391295,0.00016101,2]
[340654922,1729607441228,-401.391295,0.00016101,2]
[340654924,1729607441238,-3724.42257,0.00016101,2]
[340654926,1729607441247,-473.763715,0.00016101,2]
[340654928,1729607441258,-473.763715,0.00016101,2]
[340654929,1729607441270,-281.001937,0.00016101,2]
[340654931,1729607441280,-281.001937,0.00016101,2]
[340654933,1729607441292,-401.391295,0.00016101,2]
[340654935,1729607441302,-401.391295,0.00016101,2]
[340654937,1729607441311,-473.763715,0.00016101,2]
[340654939,1729607441320,-473.763715,0.00016101,2]
[340654941,1729607441331,-281.001937,0.00016101,2]
[340654942,1729607441340,-281.001937,0.00016101,2]
[340654944,1729607441350,-1049.883201,0.00016101,2]
[340654946,1729607441360,-1049.883201,0.00016101,2]
[340654948,1729607441371,-1049.883201,0.00016101,2]
[340654950,1729607441381,-1049.883201,0.00016101,2]
[340654951,1729607441391,-1362.058989,0.00016101,2]
[340654952,1729607441400,-1362.058989,0.00016101,2]
[340654953,1729607441410,-1362.058989,0.00016101,2]
[340654954,1729607441419,-1362.058989,0.00016101,2]
[340654955,1729607441429,-197.663788,0.00016101,2]
[340654956,1729607441438,-197.663788,0.00016101,2]
[340654957,1729607441448,-197.663788,0.00016101,2]
[340654958,1729607441457,-197.663788,0.00016101,2]
[340654959,1729607441467,-2273.458774,0.00016101,2]
[340654960,1729607441476,-2273.458774,0.00016101,2]
[340654961,1729607441486,-151.0,0.00016101,2]
[340654962,1729607441495,-151.0,0.00016101,2]
[340654963,1729607441504,-176.858881,0.00016101,2]
[340654964,1729607441516,-176.858881,0.00016101,2]
[340654965,1729607441528,-2273.458774,0.00016101,2]
[340654966,1729607441537,-2273.458774,0.00016101,2]
[340654967,1729607441547,-176.858881,0.00016101,2]
[340654968,1729607441556,-176.858881,0.00016101,2]
[340654969,1729607441566,-3082.741677,0.00016101,2]
[340654970,1729607441576,-3082.741677,0.00016101,2]
[340654971,1729607441585,-3082.741677,0.00016101,2]
[340654972,1729607441594,-3082.741677,0.00016101,2]
[340654973,1729607441604,-2268.274185,0.00016101,2]
[340654974,1729607441614,-2268.274185,0.00016101,2]
[340654975,1729607441623,-2268.274185,0.00016101,2]
[340654976,1729607441632,-2268.274185,0.00016101,2]
[340654977,1729607441641,-1152.87729,0.00016101,2]
[340654978,1729607441651,-1152.87729,0.00016101,2]
[340654979,1729607441661,-1152.87729,0.00016101,2]
[340654980,1729607441670,-1152.87729,0.00016101,2]
[340654981,1729607441680,-386.850292,0.00016101,2]
[340654982,1729607441690,-386.850292,0.00016101,2]
[340654983,1729607441700,-386.850292,0.00016101,2]
[340654984,1729607441710,-386.850292,0.00016101,2]
[340654985,1729607441720,-546.93219,0.00016101,2]
[340654986,1729607441730,-546.93219,0.00016101,2]
[340654987,1729607441740,-546.93219,0.00016101,2]
[340654988,1729607441749,-546.93219,0.00016101,2]
[340654989,1729607441759,-151.0,0.00016101,2]
[340654990,1729607441773,-151.0,0.00016101,2]
[340654991,1729607441782,-788.078115,0.00016101,2]
[340654992,1729607441791,-788.078115,0.00016101,2]
[340654993,1729607441801,-788.078115,0.00016101,2]
[340654994,1729607441810,-788.078112,0.00016101,2]
[340654995,1729607441820,-1000.0,0.00016147,2]
[340654996,1729607441829,-1000.0,0.00016147,2]
[340654997,1729607441839,-244.34744008,0.00016147,2]
[340654998,1729607441849,-1000.0,0.00016147,2]
[340654999,1729607441859,-1000.0,0.00016147,2]
[340655000,1729607441870,-504.79135082,0.00016147,2]
[340655001,1729607441880,-1000.0,0.00016147,2]
[340655002,1729607441889,-382.38718668,0.00016147,2]
[340655003,1729607441899,-1000.0,0.00016147,2]
[340655004,1729607441908,-1000.0,0.00016147,2]
[340655005,1729607441917,-1000.0,0.00016147,2]
[340655006,1729607441926,-527.0,0.00016161,2]
[340655007,1729607441936,-1027.843,0.00016161,2]
[340655008,1729607441945,-1804.0,0.00016161,2]
[340655009,1729607441955,-500.0,0.00016173,2]
[340655010,1729607441964,-500.0,0.00016173,2]
[340655011,1729607441974,-500.0,0.00016173,2]
[340655012,1729607441984,-333.84543544,0.00016173,2]
[340655013,1729607441994,-500.0,0.00016173,2]
[340655014,1729607442004,-500.0,0.00016173,2]
[340655015,1729607442013,-500.434787,0.00016173,2]
[340655016,1729607442024,-500.0,0.00016173,2]
[340655017,1729607442033,-500.0,0.00016173,2]
[340655018,1729607442043,-500.0,0.00016173,2]
[340655019,1729607442053,-197.91300588,0.00016173,2]
[340655020,1729607442062,-500.0,0.00016173,2]
[340655021,1729607442071,-500.0,0.00016173,2]
[340655022,1729607442082,-500.29065464,0.00016173,2]
[340655023,1729607442092,-418.47566829,0.00016173,2]
[340655024,1729607442101,-623.08054102,0.00016173,2]
[340655025,1729607442110,-500.0,0.00016173,2]
[340655026,1729607442120,-500.0,0.00016173,2]
[340655027,1729607442129,-500.0,0.00016173,2]
[340655028,1729607442139,-200.23139446,0.00016173,2]
[340655029,1729607442148,-500.0,0.00016173,2]
[340655030,1729607442158,-500.0,0.00016173,2]
[340655031,1729607442168,-151.0,0.00016173,2]
[340655032,1729607442177,-268.850082,0.00016173,2]
[340655033,1729607442186,-268.850082,0.00016173,2]
[340655034,1729607442197,-151.0,0.00016173,2]
[340655035,1729607442207,-264.582818,0.00016173,2]
[340655036,1729607442216,-151.0,0.00016173,2]
[340655037,1729607442226,-280.281986,0.00016173,2]
[340655038,1729607442236,-280.281986,0.00016173,2]
[340655039,1729607442246,-151.0,0.00016173,2]
[340655040,1729607442255,-151.0,0.00016173,2]
[340655041,1729607442267,-151.0,0.00016173,2]
[340655042,1729607442277,-151.0,0.00016173,2]
[340655043,1729607442287,-2198.283094,0.00016173,2]
[340655044,1729607442298,-2167.8668532,0.00016173,2]
[340655045,1729607442500,-30.4162408,0.00016173,2]
[340655046,1729607442510,-167.386446,0.00016173,2]
[340655047,1729607442524,-151.0,0.00016173,2]
[340655048,1729607442537,-167.386446,0.00016173,2]
[340655049,1729607442546,-427.286511,0.00016173,2]
[340655050,1729607442556,-427.286511,0.00016173,2]
[340655051,1729607442566,-3166.575272,0.00016173,2]
[340655052,1729607442575,-3166.575272,0.00016173,2]
[340655053,1729607442585,-151.0,0.00016173,2]
[340655054,1729607442595,-4206.576924,0.00016173,2]
[340655055,1729607442605,-151.0,0.00016173,2]
[340655056,1729607442614,-6074.025346,0.00016173,2]
[340655057,1729607442624,-6074.025346,0.00016173,2]
[340655058,1729607442633,-151.0,0.00016173,2]
[340655059,1729607442642,-990.764241,0.00016173,2]
[340655060,1729607442651,-990.764241,0.00016173,2]
[340655061,1729607442661,-1393.319928,0.00016173,2]
[340655062,1729607442671,-1393.319928,0.00016173,2]
[340655063,1729607442680,-223.127259,0.00016173,2]
[340655064,1729607442690,-223.127259,0.00016173,2]
[340655065,1729607442699,-501.263461,0.00016173,2]
[340655066,1729607442708,-305.592043,0.00016173,2]
[340655067,1729607442718,-305.592043,0.00016173,2]
[340655068,1729607442727,-2559.130548,0.00016173,2]
[340655069,1729607442737,-2559.130548,0.00016173,2]
[340655070,1729607442746,-1155.485186,0.00016173,2]
[340655071,1729607442756,-1155.485186,0.00016173,2]
[340655072,1729607442771,-3724.42257,0.00016173,2]
[340655073,1729607442781,-3724.42257,0.00016173,2]
[340655074,1729607442790,-151.0,0.00016188,2]
[340655075,1729607442800,-151.0,0.00016188,2]
[340655076,1729607442810,-846.715087,0.00016188,2]
[340655077,1729607442819,-846.715087,0.00016188,2]
[340655078,1729607442829,-241.25151293,0.00016233,2]
[340655079,1729607442838,-6738.72056285,0.00016233,2]
[340655080,1729607442848,-281.001937,0.00016233,2]
[340655081,1729607442860,-281.001934,0.00016233,2]
[340655082,1729607442870,-1362.058989,0.00016233,2]
[340655083,1729607442880,-1362.058989,0.00016233,2]
[340655084,1729607442889,-197.663788,0.00016233,2]
[340655085,1729607442898,-197.663781,0.00016233,2]
[340655086,1729607442908,-176.858881,0.00016233,2]
[340655087,1729607442917,-176.858883,0.00016233,2]
[340655088,1729607442927,-3082.741677,0.00016233,2]
[340655089,1729607442936,-3082.741682,0.00016233,2]
[340655091,1729607442945,-2268.274185,0.00016233,2]
[340655092,1729607442956,-2268.274177,0.00016233,2]
[340655093,1729607442965,-1152.87729,0.00016233,2]
[340655095,1729607442975,-1152.877294,0.00016233,2]
[340655097,1729607442984,-386.850292,0.00016233,2]
[340655099,1729607442994,-386.850295,0.00016233,2]
[340655101,1729607443003,-546.93219,0.00016233,2]
[340655102,1729607443013,-546.932199,0.00016233,2]
[340655103,1729607443026,-401.11633796,0.00016234,2]
[340655104,1729607443035,-201.0,0.0001624,2]
[340655105,1729607443044,-2000.0,0.0001627,2]
[340655106,1729607443054,-614.368358,0.0001627,2]
[340655107,1729607443063,-614.368358,0.0001627,2]
[340655108,1729607443072,-151.0,0.0001627,2]
[340655109,1729607443082,-280.619833,0.0001627,2]
[340655110,1729607443091,-280.619833,0.0001627,2]
[340655111,1729607443100,-151.0,0.0001627,2]
[340655112,1729607443110,-162.029252,0.0001627,2]
[340655113,1729607443119,-162.029252,0.0001627,2]
[340655116,1729607443129,-2611.14782,0.0001627,2]
[340655118,1729607443138,-2611.14782,0.0001627,2]
[340655120,1729607443195,-2165.894833,0.0001627,2]
[340655121,1729607443204,-2165.894833,0.0001627,2]
[340655122,1729607443214,-151.0,0.0001627,2]
[340655123,1729607443223,-151.0,0.0001627,2]
[340655124,1729607443233,-151.0,0.0001627,2]
[340655125,1729607443242,-207.299631,0.0001627,2]
[340655126,1729607443252,-207.299631,0.0001627,2]
[340655128,1729607443261,-151.0,0.0001627,2]
[340655129,1729607443273,-205.896536,0.0001627,2]
[340655131,1729607443282,-990.764241,0.0001627,2]
[340655132,1729607443296,-990.764236,0.0001627,2]
[340655133,1729607443305,-1393.319928,0.0001627,2]
[340655134,1729607443314,-1393.319925,0.0001627,2]
[340655135,1729607443323,-228.641214,0.0001627,2]
[340655136,1729607443335,-228.641214,0.0001627,2]
[340655137,1729607443344,-2559.130548,0.0001627,2]
[340655138,1729607443354,-840.25047,0.0001627,2]
[340655139,1729607443364,-2559.130556,0.0001627,2]
[340655140,1729607443375,-840.250478,0.0001627,2]
[340655141,1729607443385,-151.0,0.0001627,2]
[340655143,1729607443395,-151.0,0.0001627,2]
[340655145,1729607443405,-3724.42257,0.0001627,2]
[340655147,1729607443414,-401.391295,0.0001627,2]
[340655148,1729607443423,-3724.422579,0.0001627,2]
[340655149,1729607443433,-473.763715,0.0001627,2]
[340655150,1729607443443,-401.391298,0.0001627,2]
[340655151,1729607443452,-473.763723,0.0001627,2]
[340655152,1729607443461,-1049.883201,0.0001627,2]
[340655153,1729607443471,-1049.883208,0.0001627,2]
[340655154,1729607443481,-2273.458774,0.0001627,2]
[340655155,1729607443491,-151.0,0.0001627,2]
[340655156,1729607443500,-2273.45876957,0.0001627,2]
[340655157,1729607443510,-198.405956,0.00016277,2]
[340655158,1729607443522,-166.686702,0.00016277,2]
[340655159,1729607443531,-178.936755,0.00016277,2]
[340655160,1729607443540,-497.742527,0.00016277,2]
[340655162,1729607443550,-311.728619,0.00016277,2]
[340655164,1729607443560,-513.12499,0.00016277,2]
[340655165,1729607443571,-2000.0,0.0001628,2]
[340655166,1729607443580,-151.0,0.00016299,2]
[340655167,1729607443590,-4005.73280888,0.000163,2]
[340655168,1729607443600,-3182.62,0.000163,2]
[340655169,1729607443611,-2000.0,0.000163,2]
[340655170,1729607443621,-306.7550872,0.000163,2]
[340655171,1729607443630,-268.850082,0.000163,2]
[340655172,1729607443641,-268.850082,0.000163,2]
[340655173,1729607443651,-151.0,0.000163,2]
[340655174,1729607443660,-151.0,0.000163,2]
[340655175,1729607443669,-280.281986,0.000163,2]
[340655176,1729607443679,-280.281986,0.000163,2]
[340655177,1729607443688,-151.0,0.000163,2]
[340655178,1729607443698,-151.0,0.000163,2]
[340655179,1729607443709,-151.0,0.000163,2]
[340655180,1729607443720,-151.0,0.000163,2]
[340655181,1729607443730,-2198.283094,0.000163,2]
[340655182,1729607443740,-2198.283094,0.000163,2]
[340655183,1729607443749,-167.386446,0.000163,2]
[340655184,1729607443759,-151.0,0.000163,2]
[340655185,1729607443771,-167.386446,0.000163,2]
[340655186,1729607443781,-427.286511,0.000163,2]
[340655187,1729607443791,-427.286511,0.000163,2]
[340655188,1729607443800,-3166.575272,0.000163,2]
[340655189,1729607443810,-3166.575272,0.000163,2]
[340655190,1729607443821,-4206.576924,0.000163,2]
[340655191,1729607443830,-6074.025346,0.000163,2]
[340655192,1729607443840,-6074.025346,0.000163,2]
[340655193,1729607443849,-151.0,0.000163,2]
[340655194,1729607443861,-223.127259,0.000163,2]
[340655195,1729607443870,-223.127259,0.000163,2]
[340655196,1729607443879,-501.263461,0.000163,2]
[340655197,1729607443889,-305.592043,0.000163,2]
[340655198,1729607443898,-305.592043,0.000163,2]
[340655199,1729607443907,-1155.485186,0.000163,2]
[340655200,1729607443917,-1155.485186,0.000163,2]
[340655201,1729607443926,-626.0,0.000163,2]
[340655202,1729607443936,-600.0,0.00016307,2]
[340655203,1729607443946,-153.0,0.0001633,2]
[340655204,1729607443955,-4000.0,0.00016338,2]
[340655205,1729607443965,-444.12494021,0.00016385,2]
[340655206,1729607443975,-465.0000014,0.00016389,2]
[340655207,1729607443984,-300.0,0.000164,6]
[340655208,1729607443995,-614.368358,0.00016428,2]
[340655209,1729607444004,-614.368358,0.00016428,2]
[340655210,1729607444014,-151.0,0.00016428,2]
[340655211,1729607444024,-280.619833,0.00016428,2]
[340655212,1729607444034,-280.619833,0.00016428,2]
[340655213,1729607444043,-151.021327,0.00016428,2]
[340655214,1729607444053,-162.029252,0.00016428,2]
[340655215,1729607444062,-162.029252,0.00016428,2]
[340655216,1729607444072,-2611.14782,0.00016428,2]
[340655217,1729607444083,-2611.14782,0.00016428,2]
[340655218,1729607444094,-2165.894833,0.00016428,2]
[340655219,1729607444104,-2165.894833,0.00016428,2]
[340655220,1729607444115,-151.0,0.00016428,2]
[340655221,1729607444125,-240.486234,0.00016428,2]
[340655222,1729607444135,-151.0,0.00016428,2]
[340655223,1729607444144,-207.299631,0.00016428,2]
[340655224,1729607444154,-207.299631,0.00016428,2]
[340655225,1729607444164,-268.850082,0.00016428,2]
[340655226,1729607444173,-268.850082,0.00016428,2]
[340655227,1729607444182,-151.0,0.00016428,2]
[340655228,1729607444192,-151.0,0.00016428,2]
[340655229,1729607444201,-280.281986,0.00016428,2]
[340655230,1729607444211,-280.281986,0.00016428,2]
[340655231,1729607444220,-152.941444,0.00016428,2]
[340655232,1729607444230,-151.0,0.00016428,2]
[340655233,1729607444240,-151.0,0.00016428,2]
[340655234,1729607444250,-2198.283094,0.00016428,2]
[340655235,1729607444260,-2198.283094,0.00016428,2]
[340655236,1729607444272,-167.386446,0.00016428,2]
[340655237,1729607444281,-151.0,0.00016428,2]
[340655238,1729607444295,-167.386446,0.00016428,2]
[340655239,1729607444305,-427.286511,0.00016428,2]
[340655240,1729607444315,-427.286514,0.00016428,2]
[340655241,1729607444324,-3166.575272,0.00016428,2]
[340655242,1729607444335,-3166.575269,0.00016428,2]
[340655243,1729607444345,-4206.576917,0.00016428,2]
[340655244,1729607444355,-4282.83873357,0.00016428,2]
[340655245,1729607444371,-1791.18661243,0.00016428,2]
[340655246,1729607444382,-807.96338757,0.00016428,2]
[340655247,1729607444982,-153.103,0.00016161,2]
[340655248,1729607444992,-5266.06195843,0.00016428,2]
[340655249,1729607445002,-151.0,0.00016428,2]
[340655250,1729607445013,-223.127259,0.00016428,2]
[340655251,1729607445025,-223.127263,0.00016428,2]
[340655252,1729607445035,-501.263465,0.00016428,2]
[340655253,1729607445046,-305.592043,0.00016428,2]
[340655254,1729607445056,-305.592035,0.00016428,2]
[340655255,1729607445066,-1155.485186,0.00016428,2]
[340655256,1729607445076,-795.67677097,0.00016428,2]
[340655257,1729607445089,-359.80841803,0.00016428,2]
[340655258,1729607445099,-501.37606699,0.00016438,2]
[340655259,1729607445109,-501.94710433,0.00016438,2]
[340655260,1729607445119,-151.0,0.00016438,2]
[340655261,1729607445129,-151.0,0.00016438,2]
[340655262,1729607445139,-151.0,0.00016438,2]
[340655263,1729607445149,-151.0,0.00016438,2]
[340655264,1729607445159,-151.0,0.00016438,2]
[340655265,1729607445168,-151.0,0.00016438,2]
[340655266,1729607445179,-151.0,0.00016438,2]
[340655267,1729607445188,-502.03080073,0.00016438,2]
[340655268,1729607445199,-151.0,0.00016438,2]
[340655269,1729607445210,-151.0,0.00016438,2]
[340655270,1729607445219,-151.0,0.00016438,2]
[340655271,1729607445229,-151.0,0.00016438,2]
[340655272,1729607445239,-500.0,0.00016438,2]
[340655273,1729607445248,-501.55450367,0.00016438,2]
[340655274,1729607445258,-501.48164625,0.00016438,2]
[340655275,1729607445270,-500.62138596,0.00016438,2]
[340655276,1729607445280,-501.626354,0.00016438,2]
[340655277,1729607445293,-846.715087,0.00016438,2]
[340655278,1729607445304,-846.715087,0.00016438,2]
[340655279,1729607445314,-846.715087,0.00016438,2]
[340655280,1729607445324,-846.715087,0.00016438,2]
[340655281,1729607445335,-846.715087,0.00016438,2]
[340655282,1729607445345,-846.715087,0.00016438,2]
[340655283,1729607445354,-846.715087,0.00016438,2]
[340655284,1729607445365,-846.715087,0.00016438,2]
[340655285,1729607445376,-846.715087,0.00016438,2]
[340655286,1729607445386,-846.715087,0.00016438,2]
[340655287,1729607445396,-846.715087,0.00016438,2]
[340655288,1729607445407,-846.715091,0.00016438,2]
[340655289,1729607445417,-501.68943993,0.00016438,2]
[340655290,1729607445428,-501.62015764,0.00016438,2]
[340655291,1729607445440,-500.0,0.00016438,2]
[340655292,1729607445451,-500.0,0.00016438,2]
[340655293,1729607445461,-500.0,0.00016438,2]
[340655294,1729607445471,-502.2639229,0.00016438,2]
[340655295,1729607445482,-500.0,0.00016438,2]
[340655296,1729607445492,-500.0,0.00016438,2]
[340655297,1729607445503,-500.0,0.00016438,2]
[340655298,1729607445513,-500.0,0.00016438,2]
[340655299,1729607445525,-501.65863108,0.00016438,2]
[340655300,1729607445537,-631.35,0.00016438,2]
[340655301,1729607445549,-502.41355082,0.00016438,2]
[340655302,1729607445558,-500.51933008,0.00016438,2]
[340655303,1729607445568,-501.01770179,0.00016438,2]
[340655304,1729607445578,-525.69,0.00016438,2]
[340655305,1729607445589,-614.368358,0.00016438,2]